bitfinex/quotes_BTCUSD_20241003
["timestamp","ask_amount","ask_price","bid_price","bid_amount"]
[1727978951738,0.39695687,60701.0,60700.0,0.001674]
[1727978952914,0.41095687,60701.0,60700.0,0.001674]
[1727978953609,0.39695687,60701.0,60700.0,0.001674]
[1727978953816,0.39195687,60701.0,60700.0,0.001674]
[1727978954317,0.018,60701.0,60700.0,0.001674]
[1727978954780,0.2174873,60701.0,60700.0,0.00952446]
[1727978955012,0.182741,60701.0,60700.0,0.00952446]
[1727978955433,0.164741,60701.0,60700.0,0.00952446]
[1727978955891,0.19556766,60701.0,60700.0,0.00952446]
[1727978956319,0.178741,60701.0,60700.0,0.00952446]
[1727978956528,0.2625091,60701.0,60700.0,0.00952446]
[1727978956745,0.2535091,60701.0,60700.0,0.00952446]
[1727978957181,0.2585091,60701.0,60700.0,0.00952446]
[1727978958053,0.2585091,60701.0,60700.0,0.001674]
[1727978959442,0.28433639,60701.0,60700.0,0.001674]
[1727978959671,0.28433639,60701.0,60700.0,0.00950973]
[1727978960578,0.28433639,60701.0,60700.0,0.001674]
[1727978962006,0.28433639,60701.0,60700.0,0.00950973]
[1727978962925,0.28433639,60701.0,60700.0,0.001674]
[1727978964506,0.2585091,60701.0,60700.0,0.001674]
[1727978965238,0.37733559,60701.0,60700.0,0.001674]
[1727978966128,0.47733559,60701.0,60700.0,0.001674]
[1727978966617,0.6005764,60701.0,60700.0,0.001674]
[1727978966833,0.62322307,60701.0,60700.0,0.001674]
[1727978967090,0.64905422,60701.0,60700.0,0.001674]
[1727978967304,0.55043016,60701.0,60700.0,0.001674]
[1727978967590,0.54543016,60701.0,60700.0,0.001674]
[1727978967838,0.63338493,60701.0,60700.0,0.001674]
[1727978968066,0.63338585,60701.0,60700.0,0.001674]
[1727978968300,0.51459901,60701.0,60700.0,0.001674]
[1727978968518,0.60253979,60701.0,60700.0,0.001674]
[1727978968734,0.61653979,60701.0,60700.0,0.001674]
[1727978968964,0.51876097,60701.0,60700.0,0.001674]
[1727978969191,0.44483091,60701.0,60700.0,0.001674]
[1727978969422,0.41156749,60701.0,60700.0,0.001674]
[1727978970394,0.38356749,60701.0,60700.0,0.001674]
[1727978970848,0.29656749,60701.0,60700.0,0.001674]
[1727978971074,0.28356749,60701.0,60700.0,0.001674]
[1727978971314,0.30456749,60701.0,60700.0,0.00952359]
[1727978971768,0.29156749,60701.0,60700.0,0.00952359]
[1727978971988,0.29656749,60701.0,60700.0,0.00952359]
[1727978972215,0.30156749,60701.0,60700.0,0.00952359]
[1727978972436,0.42807185,60701.0,60700.0,0.00952359]
[1727978972903,0.42807185,60701.0,60700.0,0.001674]
[1727978973613,0.30156749,60701.0,60700.0,0.001674]
[1727978978573,0.018,60701.0,60700.0,0.3541075]
[1727978978786,0.018,60701.0,60700.0,0.3619331]
[1727978979461,0.013,60701.0,60700.0,0.3619331]
[1727978979712,0.24668821,60707.0,60700.0,0.1971891]
[1727978979971,0.005,60701.0,60700.0,0.3619331]
[1727978980170,0.008,60701.0,60700.0,0.3619331]
[1727978981169,0.003,60701.0,60700.0,0.3619331]
[1727978981413,0.003,60701.0,60700.0,0.0094996]
[1727978981653,0.003,60701.0,60700.0,0.0114996]
[1727978981654,0.28656749,60701.0,60700.0,0.0114996]
[1727978982107,0.38370054,60701.0,60700.0,0.003674]
[1727978982587,0.38370054,60701.0,60700.0,0.001674]
[1727978982808,0.38570054,60701.0,60700.0,0.001674]
[1727978983090,0.48270054,60701.0,60700.0,0.001674]
[1727978983343,0.48070054,60701.0,60700.0,0.001674]
[1727978983579,0.48770054,60701.0,60700.0,0.001674]
[1727978984466,0.49470054,60701.0,60700.0,0.001674]
[1727978984691,0.48770054,60701.0,60700.0,0.001674]
[1727978984921,0.49070054,60701.0,60700.0,0.001674]
[1727978985149,0.50070054,60701.0,60700.0,0.001674]
[1727978985690,0.40356749,60701.0,60700.0,0.001674]
[1727978985915,0.184741,60701.0,60700.0,0.001674]
[1727978986129,0.184741,60701.0,60700.0,0.095074]
[1727978986349,0.184741,60701.0,60700.0,0.10289819]
[1727978986571,0.02,60701.0,60700.0,0.10289819]
[1727978986846,0.184741,60701.0,60700.0,0.10289819]
[1727978987297,0.25169365,60701.0,60700.0,0.10289819]
[1727978987522,0.27751985,60701.0,60700.0,0.10289819]
[1727978987766,0.25751985,60701.0,60700.0,0.10289819]
[1727978987991,0.26651985,60701.0,60700.0,0.10289819]
[1727978988438,0.25751985,60701.0,60700.0,0.10289819]
[1727978988661,0.25851985,60701.0,60700.0,0.10289819]
[1727978989343,0.1915672,60701.0,60700.0,0.10289819]
[1727978990028,0.0268262,60701.0,60700.0,0.10289819]
[1727978990250,0.0268262,60701.0,60700.0,0.34624219]
[1727978990468,0.001,60701.0,60700.0,0.34624219]
[1727978991166,0.164734,60704.0,60700.0,0.34624219]
[1727978992344,0.164734,60704.0,60700.0,0.34724219]
[1727978992572,0.164734,60704.0,60700.0,0.34624019]
[1727978992816,0.24668821,60706.0,60700.0,0.18149819]
[1727978993047,0.164735,60704.0,60700.0,0.34624119]
[1727978993293,0.329466,60705.0,60700.0,0.34624119]
[1727978993525,0.164736,60703.0,60700.0,0.34624119]
[1727978993776,0.329466,60705.0,60700.0,0.34624119]
[1727978994009,0.164737,60703.0,60700.0,0.34624119]
[1727978994244,0.11957421,60703.0,60700.0,0.10289819]
[1727978994492,0.164741,60701.0,60700.0,0.10289819]
[1727978995447,0.164741,60701.0,60700.0,0.00949819]
[1727978995807,0.164741,60701.0,60700.0,0.01049819]
[1727978996018,0.28867182,60701.0,60700.0,0.01049819]
[1727978996833,0.28867182,60701.0,60700.0,0.00949819]
[1727978997518,0.29167182,60701.0,60700.0,0.001674]
[1727978997718,0.34102728,60701.0,60700.0,0.001674]
[1727978997948,0.36570501,60701.0,60700.0,0.001674]
[1727978998185,0.34103049,60701.0,60700.0,0.001674]
[1727978998669,0.29167182,60701.0,60700.0,0.001674]
[1727979000387,0.41049831,60701.0,60700.0,0.001674]
[1727979000806,0.4845315,60701.0,60700.0,0.001674]
[1727979001654,0.41049831,60701.0,60700.0,0.001674]
[1727979003205,0.4845711,60701.0,60700.0,0.001674]
[1727979003426,0.07707279,60701.0,60700.0,0.001674]
[1727979003715,0.003,60701.0,60700.0,0.35204636]
[1727979003953,0.167741,60701.0,60700.0,0.10830236]
[1727979004170,0.167741,60701.0,60700.0,0.00950236]
[1727979004399,0.40625057,60701.0,60700.0,0.00950236]
[1727979004625,0.40625057,60701.0,60700.0,0.001674]
[1727979004626,0.45564137,60701.0,60700.0,0.001674]
[1727979004865,0.48032336,60701.0,60700.0,0.001674]
[1727979005096,0.05240329,60701.0,60700.0,0.341718]
[1727979005313,0.003,60701.0,60700.0,0.34953866]
[1727979006731,0.02882514,60701.0,60700.0,0.34953866]
[1727979007665,0.003,60701.0,60700.0,0.34953866]
[1727979009301,0.003,60701.0,60700.0,0.18479466]
[1727979009548,0.003,60701.0,60700.0,0.34953866]
[1727979013061,0.167741,60701.0,60700.0,0.00949466]
[1727979013308,0.003,60701.0,60700.0,0.17423866]
[1727979018418,0.167741,60701.0,60700.0,0.00949466]
[1727979018665,0.22981582,60701.0,60700.0,0.00949466]
[1727979018928,0.06507482,60701.0,60700.0,0.00949466]
[1727979019446,0.22981582,60701.0,60700.0,0.00949466]
[1727979019919,0.06507482,60701.0,60700.0,0.00949466]
[1727979020402,0.003,60701.0,60700.0,0.17423866]
[1727979021786,0.167741,60701.0,60700.0,0.00949466]
[1727979022029,0.28656749,60701.0,60700.0,0.00949466]
[1727979022280,0.44388037,60701.0,60700.0,0.001674]
[1727979022491,0.51806581,60701.0,60700.0,0.001674]
[1727979023393,0.44388037,60701.0,60700.0,0.001674]
[1727979023630,0.51808211,60701.0,60700.0,0.001674]
[1727979023865,0.24194274,60701.0,60700.0,0.001674]
[1727979024356,0.24194274,60701.0,60700.0,0.00966782]
[1727979024357,0.167741,60701.0,60700.0,0.00966782]
[1727979025050,0.21720803,60701.0,60700.0,0.00966782]
[1727979025245,0.167741,60701.0,60700.0,0.00966782]
[1727979025534,0.003,60701.0,60700.0,0.00966782]
[1727979025761,0.05246788,60701.0,60700.0,0.00966782]
[1727979026008,0.003,60701.0,60700.0,0.25281182]
[1727979028559,0.003,60701.0,60700.0,0.51289853]
[1727979028796,0.003,60701.0,60700.0,0.53589853]
[1727979029032,0.003,60701.0,60700.0,0.34971182]
[1727979029543,0.24668821,60707.0,60706.0,0.164728]
[1727979029785,0.24668821,60707.0,60706.0,0.17269934]
[1727979030031,0.001636,60709.0,60706.0,0.17269934]
[1727979030032,0.001636,60709.0,60706.0,0.00797134]
[1727979030480,0.001636,60709.0,60702.0,0.329477]
[1727979030713,0.001636,60709.0,60707.0,0.00797025]
[1727979030950,0.001636,60709.0,60706.0,0.164727]
[1727979031181,0.166356,60709.0,60708.0,0.00796916]
[1727979031416,0.166356,60709.0,60707.0,0.00797025]
[1727979031644,0.166356,60709.0,60706.0,0.164727]
[1727979031929,0.166356,60709.0,60708.0,0.00796916]
[1727979032154,0.166356,60709.0,60707.0,0.00797025]
[1727979032404,0.166356,60709.0,60708.0,0.00796916]
[1727979032625,0.169356,60709.0,60708.0,0.00796916]
[1727979032836,0.169356,60709.0,60706.0,0.164727]
[1727979033097,0.166356,60709.0,60708.0,0.00794053]
[1727979033323,0.168356,60709.0,60707.0,0.00794162]
[1727979033545,0.168356,60709.0,60708.0,0.00794053]
[1727979033990,0.168356,60709.0,60706.0,0.164727]
[1727979034224,0.168356,60709.0,60708.0,0.00794053]
[1727979034225,0.170356,60709.0,60708.0,0.00794053]
[1727979034459,0.170356,60709.0,60707.0,0.00794162]
[1727979034697,0.170356,60709.0,60708.0,0.00794053]
[1727979035192,0.005636,60709.0,60705.0,0.43437771]
[1727979035442,0.005636,60709.0,60708.0,0.17266253]
[1727979035663,0.005636,60709.0,60708.0,0.164722]
[1727979035909,0.005636,60709.0,60708.0,0.17266253]
[1727979036169,0.003636,60709.0,60708.0,0.17266253]
[1727979036367,0.005636,60709.0,60708.0,0.17266253]
[1727979036827,0.02745742,60709.0,60708.0,0.17266253]
[1727979037649,0.02745742,60709.0,60708.0,0.17366253]
[1727979038821,0.001636,60709.0,60708.0,0.17366253]
[1727979039985,0.001636,60709.0,60708.0,0.25126253]
[1727979040662,0.001636,60709.0,60708.0,0.00894053]
[1727979040892,0.001636,60709.0,60708.0,0.17366253]
[1727979045570,0.02745632,60709.0,60708.0,0.33684924]
[1727979045823,0.02745632,60709.0,60708.0,0.52804924]
[1727979045824,0.001636,60709.0,60708.0,0.52804924]
[1727979046508,0.001636,60709.0,60708.0,0.53237549]
[1727979046734,0.002636,60709.0,60708.0,0.53637549]
[1727979046964,0.003636,60709.0,60708.0,0.53637549]
[1727979047717,0.24832421,60724.0,60723.0,0.5202715]
[1727979048174,0.24832421,60724.0,60723.0,0.52809248]
[1727979048399,0.001636,60724.0,60723.0,0.52809248]
[1727979048844,0.001636,60724.0,60723.0,0.52909248]
[1727979049737,0.001636,60724.0,60723.0,0.53209248]
[1727979053575,0.02744956,60724.0,60723.0,0.26720298]
[1727979060531,0.02744956,60724.0,60723.0,0.17650298]
[1727979063973,0.02744956,60724.0,60723.0,0.01182098]
[1727979063974,0.24427412,60724.0,60723.0,0.01182098]
[1727979064198,0.39073508,60724.0,60723.0,0.01182098]
[1727979064413,0.64641102,60724.0,60723.0,0.004]
[1727979064853,0.64641102,60724.0,60723.0,0.003]
[1727979064854,0.74641102,60724.0,60723.0,0.003]
[1727979065078,0.56172152,60724.0,60723.0,0.003]
[1727979065791,0.39704252,60724.0,60711.0,0.24668821]
[1727979066005,0.164707,60714.0,60711.0,0.41140221]
[1727979066221,0.164707,60714.0,60712.0,0.00818599]
[1727979066438,0.164709,60713.0,60712.0,0.00818599]
[1727979066659,0.164713,60712.0,60708.0,0.165539]
[1727979066898,0.164713,60712.0,60709.0,0.164718]
[1727979067126,0.24668821,60721.0,60708.0,0.000818]
[1727979067359,0.329422,60713.0,60708.0,0.000818]
[1727979067653,0.19053364,60712.0,60708.0,0.16554]
[1727979067877,0.164714,60711.0,60708.0,0.16554]
[1727979068120,0.19153364,60712.0,60708.0,0.16554]
[1727979068329,0.19153364,60712.0,60708.0,0.000818]
[1727979068330,0.02682064,60712.0,60708.0,0.000818]
[1727979068552,0.02582064,60712.0,60708.0,0.000818]
[1727979068760,0.164715,60711.0,60708.0,0.165539]
[1727979068986,0.329431,60711.0,60708.0,0.000818]
[1727979069210,0.16472,60709.0,60708.0,0.000818]
[1727979070128,0.16472,60709.0,60708.0,0.001818]
[1727979070332,0.16472,60709.0,60708.0,0.000818]
[1727979070577,0.16472,60709.0,60708.0,0.003818]
[1727979071015,0.164717,60710.0,60708.0,0.003818]
[1727979071489,0.16472,60709.0,60708.0,0.003818]
[1727979071970,0.02582064,60712.0,60708.0,0.000818]
[1727979072209,0.02745664,60712.0,60708.0,0.002818]
[1727979072440,0.02745664,60712.0,60711.0,0.164714]
[1727979074087,0.02945664,60712.0,60711.0,0.35090071]
[1727979074338,0.003636,60712.0,60711.0,0.45050071]
[1727979074580,0.002636,60712.0,60711.0,0.53000071]
[1727979074800,0.003636,60712.0,60711.0,0.53400071]
[1727979075322,0.001636,60712.0,60711.0,0.53200071]
[1727979075563,0.003636,60712.0,60711.0,0.53200071]
[1727979076272,0.002636,60712.0,60711.0,0.53200071]
[1727979076505,0.002636,60712.0,60711.0,0.54856558]
[1727979076506,0.003636,60712.0,60711.0,0.54856558]
[1727979076957,0.001636,60712.0,60711.0,0.35237887]
[1727979077104,0.003636,60712.0,60711.0,0.36537887]
[1727979077740,0.003636,60712.0,60711.0,0.02156487]
[1727979078188,0.002636,60712.0,60711.0,0.01756487]
[1727979078396,0.2324938,60712.0,60711.0,0.00856487]
[1727979078624,0.2344938,60712.0,60711.0,0.02056487]
[1727979078844,0.2344938,60712.0,60711.0,0.004]
[1727979078845,0.3109938,60712.0,60711.0,0.004]
[1727979079269,0.36218203,60712.0,60711.0,0.004]
[1727979079905,0.36318203,60712.0,60711.0,0.004]
[1727979080109,0.16472,60709.0,60708.0,0.000818]
[1727979080323,0.28246101,60709.0,60708.0,0.000818]
[1727979080888,0.38246101,60709.0,60708.0,0.000818]
[1727979081114,0.54564772,60709.0,60708.0,0.000818]
[1727979081344,0.59493454,60709.0,60708.0,0.002818]
[1727979081569,0.59493454,60709.0,60708.0,0.005818]
[1727979081789,0.59493454,60709.0,60708.0,0.003818]
[1727979082011,0.60593454,60709.0,60708.0,0.000818]
[1727979082254,0.61681276,60709.0,60708.0,0.001818]
[1727979082473,0.40446101,60709.0,60708.0,0.001818]
[1727979083114,0.40446101,60709.0,60708.0,0.01052382]
[1727979083119,0.40446101,60709.0,60708.0,0.001818]
[1727979083357,0.30446101,60709.0,60708.0,0.01052382]
[1727979083581,0.18672,60709.0,60708.0,0.001818]
[1727979083808,0.18672,60709.0,60708.0,0.01052382]
[1727979084028,0.17572,60709.0,60708.0,0.001818]
[1727979084258,0.18672,60709.0,60708.0,0.01052382]
[1727979084525,0.17572,60709.0,60708.0,0.00952382]
[1727979084748,0.17372,60709.0,60708.0,0.01052382]
[1727979085003,0.18272,60709.0,60708.0,0.01052382]
[1727979085680,0.04382368,60709.0,60708.0,0.01052382]
[1727979085953,0.018,60709.0,60708.0,0.01052382]
[1727979086630,0.18272,60709.0,60708.0,0.01052382]
[1727979087339,0.18272,60709.0,60708.0,0.001818]
[1727979087554,0.17372,60709.0,60708.0,0.001818]
[1727979087772,0.18272,60709.0,60708.0,0.001818]
[1727979088259,0.17372,60709.0,60708.0,0.00950555]
[1727979088480,0.16472,60709.0,60708.0,0.000818]
[1727979088699,0.17072,60709.0,60708.0,0.00950555]
[1727979088841,0.17972,60709.0,60708.0,0.001818]
[1727979089074,0.16472,60709.0,60708.0,0.000818]
[1727979089536,0.17272,60709.0,60708.0,0.000818]
[1727979089623,0.17272,60709.0,60708.0,0.00950914]
[1727979089843,0.2881833,60709.0,60708.0,0.000818]
[1727979090760,0.2841833,60709.0,60708.0,0.000818]
[1727979091083,0.40592431,60709.0,60708.0,0.000818]
[1727979091292,0.29046101,60709.0,60708.0,0.00950914]
[1727979091734,0.28646101,60709.0,60708.0,0.00950914]
[1727979091964,0.29046101,60709.0,60708.0,0.00950914]
[1727979093098,0.30785614,60709.0,60708.0,0.00950914]
[1727979093347,0.30785614,60709.0,60708.0,0.000818]
[1727979094053,0.29046101,60709.0,60708.0,0.000818]
[1727979094948,0.31628603,60709.0,60708.0,0.000818]
[1727979095936,0.19854502,60709.0,60708.0,0.000818]
[1727979096172,0.17272,60709.0,60708.0,0.000818]
[1727979096401,0.008,60709.0,60708.0,0.16554]
[1727979096631,0.008,60709.0,60708.0,0.17428685]
[1727979096859,0.008,60709.0,60708.0,0.00956485]
[1727979097100,0.008,60709.0,60708.0,0.17428685]
[1727979097329,0.008,60709.0,60708.0,0.00956485]
[1727979097564,0.008,60709.0,60708.0,0.17428685]
[1727979097565,0.004,60709.0,60708.0,0.17428685]
[1727979097797,0.164716,60711.0,60708.0,0.17428685]
[1727979098048,0.008,60709.0,60708.0,0.17428685]
[1727979098270,0.16872,60709.0,60708.0,0.00956485]
[1727979098563,0.16472,60709.0,60708.0,0.00956485]
[1727979099471,0.19054243,60709.0,60708.0,0.00956485]
[1727979100377,0.27584577,60709.0,60708.0,0.000818]
[1727979100594,0.39358678,60709.0,60708.0,0.000818]
[1727979101729,0.40058678,60709.0,60708.0,0.000818]
[1727979101952,0.40758678,60709.0,60708.0,0.001818]
[1727979103475,0.39358678,60709.0,60708.0,0.000818]
[1727979103725,0.40258678,60709.0,60708.0,0.001818]
[1727979103929,0.40258678,60709.0,60708.0,0.000818]
[1727979104345,0.40658678,60709.0,60708.0,0.001818]
[1727979104562,0.41858678,60709.0,60708.0,0.001818]
[1727979107545,0.42022278,60709.0,60708.0,0.001818]
[1727979107974,0.56933247,60709.0,60708.0,0.001818]
[1727979108401,0.52022278,60709.0,60708.0,0.001818]
[1727979108607,0.59388732,60709.0,60708.0,0.001818]
[1727979109056,0.52022278,60709.0,60708.0,0.001818]
[1727979109492,0.56806489,60709.0,60708.0,0.001818]
[1727979110595,0.54152171,60709.0,60708.0,0.001818]
[1727979110816,0.6397411,60709.0,60708.0,0.001818]
[1727979111741,0.63973808,60709.0,60708.0,0.001818]
[1727979112827,0.66556449,60709.0,60708.0,0.001818]
[1727979113717,0.45621837,60709.0,60708.0,0.001818]
[1727979113921,0.5299104,60709.0,60708.0,0.001818]
[1727979117012,0.55573651,60709.0,60708.0,0.001818]
[1727979117927,0.45621837,60709.0,60708.0,0.001818]
[1727979118152,0.40909701,60709.0,60708.0,0.001818]
[1727979120886,0.291356,60709.0,60708.0,0.001818]
[1727979121093,0.026636,60709.0,60708.0,0.001818]
[1727979121323,0.05246055,60709.0,60708.0,0.17530419]
[1727979121560,0.21718055,60709.0,60708.0,0.10608219]
[1727979122070,0.04046055,60709.0,60708.0,0.10608219]
[1727979122280,0.20618055,60709.0,60708.0,0.10608219]
[1727979122409,0.180356,60709.0,60708.0,0.10608219]
[1727979122830,0.167356,60709.0,60708.0,0.10508219]
[1727979123049,0.002636,60709.0,60708.0,0.10508219]
[1727979123278,0.002636,60709.0,60708.0,0.26980419]
[1727979123491,0.001636,60709.0,60708.0,0.26980419]
[1727979123746,0.003636,60709.0,60708.0,0.26980419]
[1727979124418,0.003636,60709.0,60708.0,0.27080419]
[1727979124673,0.001636,60709.0,60708.0,0.10608219]
[1727979125334,0.001636,60709.0,60708.0,0.10708219]
[1727979126657,0.166356,60709.0,60708.0,0.10708219]
[1727979127097,0.001636,60709.0,60708.0,0.27180419]
[1727979127337,0.001636,60709.0,60708.0,0.10708219]
[1727979129972,0.19217819,60709.0,60708.0,0.10708219]
[1727979130186,0.02745819,60709.0,60708.0,0.10708219]
[1727979131117,0.001636,60709.0,60708.0,0.10708219]
[1727979132492,0.166356,60709.0,60708.0,0.10708219]
[1727979133735,0.001636,60709.0,60708.0,0.10708219]
[1727979133946,0.001636,60709.0,60708.0,0.34840419]
[1727979134469,0.02745605,60709.0,60708.0,0.34840419]
[1727979136154,0.001636,60709.0,60708.0,0.34840419]
[1727979140878,0.02745509,60709.0,60708.0,0.34840419]
[1727979144536,0.001636,60709.0,60708.0,0.34840419]
[1727979147148,0.001636,60709.0,60708.0,0.5345909]
[1727979147415,0.001636,60709.0,60708.0,0.55210035]
[1727979147893,0.001636,60709.0,60708.0,0.55110035]
[1727979148080,0.001636,60709.0,60708.0,0.55110045]
[1727979148293,0.002636,60709.0,60708.0,0.5385909]
[1727979148519,0.002636,60709.0,60708.0,0.55510045]
[1727979148778,0.003636,60709.0,60708.0,0.5475909]
[1727979148997,0.003636,60709.0,60708.0,0.56710045]
[1727979149180,0.003636,60709.0,60708.0,0.5495909]
[1727979149398,0.003636,60709.0,60708.0,0.56710045]
[1727979149813,0.003636,60709.0,60708.0,0.5495909]
[1727979150096,0.003636,60709.0,60708.0,0.66710045]
[1727979150311,0.002636,60709.0,60708.0,0.6445909]
[1727979150529,0.003636,60709.0,60708.0,0.66710045]
[1727979150749,0.003636,60709.0,60708.0,0.8372804]
[1727979152047,0.001636,60712.0,60711.0,0.340914]
[1727979152232,0.001636,60712.0,60711.0,0.52710071]
[1727979152376,0.001636,60712.0,60711.0,0.53604806]
[1727979152820,0.001636,60712.0,60711.0,0.55346935]
[1727979153257,0.002636,60712.0,60711.0,0.66346935]
[1727979153656,0.24668821,60721.0,60720.0,0.16469]
[1727979153830,0.24668821,60721.0,60720.0,0.71016621]
[1727979154063,0.24668821,60728.0,60723.0,0.164682]
[1727979154259,0.24668821,60728.0,60723.0,0.32786871]
[1727979154458,0.001636,60735.0,60723.0,0.32786871]
[1727979154459,0.001636,60735.0,60723.0,0.35969577]
[1727979155325,0.001636,60735.0,60723.0,0.36069577]
[1727979156557,0.001636,60735.0,60723.0,0.36169577]
[1727979158369,0.02581148,60725.0,60723.0,0.36169577]
[1727979159373,0.001636,60735.0,60723.0,0.36169577]
[1727979159800,0.24668821,60731.0,60723.0,0.33869577]
[1727979160231,0.24668821,60731.0,60723.0,0.17550906]
[1727979160998,0.001636,60735.0,60723.0,0.17550906]
[1727979161204,0.166287,60735.0,60723.0,0.17550906]
[1727979161408,0.001636,60735.0,60723.0,0.36169577]
[1727979163385,0.24668821,60731.0,60723.0,0.36169577]
[1727979165027,0.24668821,60731.0,60723.0,0.54938527]
[1727979166168,0.02744807,60724.0,60723.0,0.54938527]
[1727979168488,0.02744807,60724.0,60723.0,0.17550906]
[1727979170248,0.001636,60724.0,60723.0,0.17550906]
[1727979173500,0.02744932,60724.0,60723.0,0.17550906]
[1727979173722,0.02744932,60724.0,60723.0,0.44449577]
[1727979174617,0.422962,60742.0,60723.0,0.44449577]
[1727979174618,0.000818,60748.0,60734.0,0.164652]
[1727979174843,0.000818,60748.0,60734.0,0.63422821]
[1727979174844,0.24668821,60737.0,60734.0,0.63422821]
[1727979175088,0.000818,60748.0,60734.0,0.72582524]
[1727979175515,0.000818,60748.0,60734.0,0.74342836]
[1727979175717,0.002636,60735.0,60734.0,0.75142836]
[1727979175916,0.003636,60735.0,60734.0,0.76242836]
[1727979176338,0.002636,60735.0,60734.0,0.75442836]
[1727979176556,0.003636,60735.0,60734.0,0.76242836]
[1727979176974,0.002636,60735.0,60734.0,0.75442836]
[1727979177181,0.001636,60735.0,60734.0,0.74542836]
[1727979177407,0.001636,60735.0,60734.0,0.75642836]
[1727979177408,0.002636,60735.0,60734.0,0.75642836]
[1727979177624,0.002636,60735.0,60734.0,0.74542836]
[1727979178043,0.003636,60735.0,60734.0,0.75742836]
[1727979178270,0.000818,60748.0,60744.0,0.283825]
[1727979178475,0.000818,60748.0,60745.0,0.265522]
[1727979178687,0.000818,60748.0,60745.0,0.43143825]
[1727979178911,0.000818,60748.0,60745.0,0.43732447]
[1727979179137,0.000818,60748.0,60745.0,0.45492759]
[1727979179392,0.000818,60748.0,60745.0,0.43732447]
[1727979179854,0.000818,60748.0,60745.0,0.45692759]
[1727979180081,0.001818,60746.0,60745.0,0.56292759]
[1727979180306,0.001818,60746.0,60745.0,0.66222759]
[1727979180529,0.002818,60746.0,60745.0,0.66922759]
[1727979180757,0.002818,60746.0,60745.0,0.66722759]
[1727979180987,0.003818,60746.0,60745.0,0.68122759]
[1727979181208,0.002818,60746.0,60745.0,0.67522759]
[1727979181687,0.003818,60746.0,60745.0,0.68922759]
[1727979182377,0.003818,60746.0,60745.0,0.67162447]
[1727979182584,0.003818,60746.0,60745.0,0.68922759]
[1727979182802,0.003818,60746.0,60745.0,0.67709942]
[1727979185737,0.003818,60746.0,60745.0,0.59219942]
[1727979187738,0.003818,60746.0,60745.0,0.56919942]
[1727979187968,0.003818,60746.0,60745.0,0.20123776]
[1727979188451,0.250437,60746.0,60745.0,0.03661576]
[1727979188937,0.250437,60746.0,60745.0,0.02261576]
[1727979188938,0.249437,60746.0,60745.0,0.02261576]
[1727979189402,0.084818,60746.0,60745.0,0.02961576]
[1727979189638,0.082818,60746.0,60745.0,0.01561576]
[1727979189877,0.082818,60746.0,60745.0,0.01661576]
[1727979190114,0.082818,60746.0,60745.0,0.01761576]
[1727979190341,0.247437,60746.0,60745.0,0.00961576]
[1727979190598,0.247437,60746.0,60745.0,0.01061576]
[1727979191326,0.247437,60746.0,60745.0,0.002]
[1727979191789,0.247437,60746.0,60745.0,0.001]
[1727979192023,0.250437,60746.0,60745.0,0.001]
[1727979192306,0.49634362,60746.0,60745.0,0.001]
[1727979192544,0.49334362,60746.0,60745.0,0.001]
[1727979192775,0.49334362,60746.0,60731.0,0.24668821]
[1727979192776,0.164655,60733.0,60731.0,0.24668821]
[1727979192997,0.164657,60732.0,60731.0,0.24668821]
[1727979193208,0.241349,60735.0,60732.0,0.00846003]
[1727979193426,0.241349,60735.0,60731.0,0.17320432]
[1727979193654,0.0767,60735.0,60733.0,0.00856649]
[1727979193889,0.0767,60735.0,60733.0,0.164654]
[1727979194109,0.0767,60735.0,60734.0,0.0085654]
[1727979194375,0.26715929,60735.0,60734.0,0.0085654]
[1727979194838,0.26716129,60735.0,60734.0,0.0085654]
[1727979195089,0.26716129,60735.0,60731.0,0.16466]
[1727979195342,0.10251029,60735.0,60734.0,0.0085654]
[1727979195546,0.10451029,60735.0,60732.0,0.164656]
[1727979195802,0.10251029,60735.0,60734.0,0.0085654]
[1727979195998,0.10251029,60735.0,60732.0,0.164656]
[1727979196235,0.0787,60735.0,60734.0,0.0085654]
[1727979196491,0.243349,60735.0,60732.0,0.164656]
[1727979196715,0.244349,60735.0,60734.0,0.0085654]
[1727979196938,0.0797,60735.0,60733.0,0.00856649]
[1727979197205,0.0797,60735.0,60734.0,0.0085654]
[1727979197425,0.244349,60735.0,60732.0,0.04928265]
[1727979197641,0.164655,60733.0,60732.0,0.04928265]
[1727979197869,0.164655,60733.0,60731.0,0.04928265]
[1727979198073,0.164655,60733.0,60732.0,0.04928265]
[1727979198307,0.164654,60734.0,60732.0,0.04928265]
[1727979198554,0.493965,60733.0,60732.0,0.04929498]
[1727979198825,0.493965,60733.0,60732.0,0.004]
[1727979199331,0.493965,60733.0,60727.0,0.07394247]
[1727979199332,0.329316,60732.0,60728.0,0.04929498]
[1727979199541,0.164665,60729.0,60728.0,0.04929498]
[1727979200265,0.164665,60729.0,60726.0,0.07394247]
[1727979200266,0.164668,60728.0,60727.0,0.04929498]
[1727979200719,0.42569406,60729.0,60726.0,0.04929498]
[1727979200974,0.164671,60727.0,60726.0,0.04929498]
[1727979201271,0.164671,60727.0,60726.0,0.07394247]
[1727979201502,0.164674,60726.0,60725.0,0.04931145]
[1727979201726,0.329333,60729.0,60725.0,0.04931145]
[1727979201727,0.164666,60729.0,60726.0,0.164673]
[1727979201941,0.164666,60729.0,60725.0,0.21398545]
[1727979202183,0.329323,60731.0,60725.0,0.04931145]
[1727979202428,0.329323,60731.0,60728.0,0.164668]
[1727979202429,0.164662,60731.0,60728.0,0.164668]
[1727979202662,0.164662,60731.0,60727.0,0.16467]
[1727979202921,0.164663,60730.0,60727.0,0.16467]
[1727979203173,0.164658,60732.0,60728.0,0.164667]
[1727979203404,0.164664,60730.0,60727.0,0.164671]
[1727979203836,0.44379831,60733.0,60726.0,0.329343]
[1727979204106,0.11448631,60733.0,60727.0,0.165671]
[1727979204319,0.164664,60730.0,60727.0,0.165671]
[1727979205071,0.164664,60730.0,60727.0,0.001]
[1727979205303,0.329323,60731.0,60727.0,0.001]
[1727979205556,0.329327,60730.0,60727.0,0.001]
[1727979205798,0.164668,60728.0,60727.0,0.001]
[1727979206033,0.164685,60722.0,60718.0,0.41138221]
[1727979206274,0.329355,60725.0,60713.0,0.09864125]
[1727979206275,0.0821,60716.0,60713.0,0.04932062]